fUSD/lending_fUSD_20260422
["ID","MTS","AMOUNT","RATE_DAILY","PERIOD"]
[420956150,1776797180143,154.4434751,0.00016226,30]
[420956151,1776797253978,300.0,7.8e-05,2]
[420956152,1776797354426,500.0,0.00016226,30]
[420956153,1776797354596,500.0,0.00016226,30]
[420956154,1776797354768,500.0,0.00016226,30]
[420956155,1776797354944,500.0,0.00016226,30]
[420956156,1776797355129,632.65490177,0.00016226,30]
[420956157,1776797357940,500.0,0.00016226,30]
[420956158,1776797358092,500.0,0.00016226,30]
[420956159,1776797358144,500.0,0.00016226,30]
[420956160,1776797358182,500.0,0.00016226,30]
[420956161,1776797358220,611.19062368,0.00016226,30]
[420956164,1776797431716,-1200.0,7.892e-05,2]
[420956165,1776797431725,-92774.96984613,7.893e-05,2]
[420956166,1776797431736,-88143.02384741,7.893e-05,2]
[420956167,1776797431748,-251151.16713779,7.893e-05,2]
[420956168,1776797431759,-80019.07930902,7.893e-05,2]
[420956169,1776797431786,-2448.0892418,7.893e-05,2]
[420956170,1776797431797,-811.38375138,7.893e-05,2]
[420956171,1776797431930,-671.18141117,7.893e-05,2]
[420956176,1776797437911,-210.83937879,7.892e-05,2]
[420956177,1776797437927,-500.0,7.892e-05,2]
[420956178,1776797437937,-500.0,7.892e-05,2]
[420956179,1776797437948,-227.19387717,7.892e-05,2]
[420956180,1776797437958,-173.76686601,7.892e-05,2]
[420956181,1776797437969,-500.0,7.892e-05,2]
[420956182,1776797437979,-191.29226756,7.892e-05,2]
[420956183,1776797437990,-500.0,7.892e-05,2]
[420956184,1776797438001,-500.0,7.892e-05,2]
[420956185,1776797438011,-500.0,7.892e-05,2]
[420956186,1776797438022,-231.17469513,7.892e-05,2]
[420956187,1776797438032,-500.0,7.892e-05,2]
[420956188,1776797438042,-500.0,7.892e-05,2]
[420956189,1776797438053,-500.0,7.892e-05,2]
[420956190,1776797438063,-500.0,7.892e-05,2]
[420956191,1776797438074,-1722.46833794,7.893e-05,2]
[420956192,1776797438130,-1452.99955753,7.893e-05,2]
[420956209,1776797440698,-5107.37016218,7.893e-05,2]
[420956210,1776797440710,-30668.74154793,7.893e-05,2]
[420956211,1776797440721,-1045.19488352,7.893e-05,2]
[420956212,1776797440745,-3126.03999996,7.893e-05,2]
[420956213,1776797440832,-7900.01,7.893e-05,2]
[420956214,1776797440846,-10000.01,7.893e-05,2]
[420956215,1776797440864,-10000.01,7.893e-05,2]
[420956230,1776797445589,-10000.01,7.893e-05,2]
[420956231,1776797445688,-10000.01,7.893e-05,2]
[420956235,1776797445793,-10000.01,7.893e-05,2]
[420956236,1776797445872,-14948.31110036,7.893e-05,2]
[420956237,1776797445886,-100928.55396588,7.893e-05,2]
[420956238,1776797445896,-42702.1265,7.893e-05,2]
[420956239,1776797445905,-700.0,7.9e-05,2]
[420956240,1776797445916,-9166.0,7.973e-05,2]
[420956241,1776797445926,-150.0,7.973e-05,2]
[420956242,1776797445935,-150.0,7.973e-05,2]
[420956243,1776797445944,-150.0,7.973e-05,2]
[420956244,1776797445954,-150.0,7.973e-05,2]
[420956245,1776797445964,-150.0,7.973e-05,2]
[420956246,1776797445973,-744.0,7.973e-05,2]
[420956247,1776797445982,-500.0,7.973e-05,2]
[420956248,1776797445992,-500.0,7.973e-05,2]
[420956249,1776797446001,-2333.37748605,7.993e-05,2]
[420956250,1776797446011,-577.68718738,7.993e-05,2]
[420956251,1776797446020,-4311.43348281,7.993e-05,2]
[420956252,1776797446030,-246.0,7.993e-05,3]
[420956253,1776797446039,-500.0,7.993e-05,2]
[420956254,1776797446048,-1100.0,8e-05,2]
[420956255,1776797446058,-500.0,8.219e-05,2]
[420956256,1776797446068,-500.0,8.219e-05,2]
[420956257,1776797446078,-509.37504083,8.219e-05,2]
[420956258,1776797446087,-500.0,8.219e-05,2]
[420956259,1776797446097,-500.0,8.219e-05,2]
[420956260,1776797446106,-2000.0,8.296e-05,2]
[420956261,1776797446115,-150.0,8.296e-05,2]
[420956262,1776797446125,-1310.49,8.296e-05,2]
[420956263,1776797446134,-150.0,8.461e-05,2]
[420956264,1776797446143,-150.0,8.493e-05,2]
[420956265,1776797446153,-150.0,8.493e-05,2]
[420956266,1776797446162,-500.0,8.521e-05,2]
[420956267,1776797446172,-3809.94123285,8.617e-05,2]
[420956268,1776797446182,-250.0,8.617e-05,2]
[420956269,1776797446191,-1680.0,8.681e-05,2]
[420956270,1776797446201,-246.0,8.73e-05,3]
[420956271,1776797446210,-500.0,8.986e-05,2]
[420956272,1776797446219,-1500.0,9.008e-05,2]
[420956273,1776797446228,-11820.9454103,9.041e-05,2]
[420956274,1776797446237,-686.28,9.202e-05,2]
[420956275,1776797446247,-2000.0,9.333e-05,2]
[420956276,1776797446256,-246.0,9.467e-05,3]
[420956277,1776797446265,-220.16,9.523e-05,2]
[420956278,1776797446275,-1729.0,9.549e-05,2]
[420956279,1776797446284,-501.0,9.671e-05,2]
[420956280,1776797446293,-260.0,9.863e-05,2]
[420956281,1776797446302,-437.26600755,0.0001,2]
[420956282,1776797446312,-437.26600753,0.0001,2]
[420956283,1776797446322,-200.0,0.0001,2]
[420956293,1776797446796,-151.0,0.0001,2]
[420956294,1776797446810,-151.0,0.0001,2]
[420956295,1776797446819,-151.0,0.0001,2]
[420956296,1776797446829,-231.66311985,0.0001,2]
[420956297,1776797446838,-500.0,0.0001,2]
[420956298,1776797446847,-500.0,0.0001,2]
[420956299,1776797446857,-278.0329434,0.0001,2]
[420956300,1776797446866,-1400.0,0.0001,3]
[420956301,1776797446876,-151.0,0.0001,2]
[420956302,1776797446885,-22876.4497673,0.00010027,2]
[420956303,1776797446895,-246.0,0.00010205,3]
[420956304,1776797446904,-500.0,0.00010205,2]
[420956305,1776797446914,-578.20924308,0.00010217,2]
[420956306,1776797446924,-1428.38747117,0.00010217,2]
[420956307,1776797446933,-6883.21370373,0.00010217,2]
[420956308,1776797446943,-200.0,0.00010217,2]
[420956309,1776797446952,-721.12765535,0.00010217,2]
[420956310,1776797446962,-151.0,0.00010217,2]
[420956311,1776797446971,-2000.0,0.00010217,2]
[420956312,1776797446980,-2000.0,0.00010217,2]
[420956313,1776797446990,-2000.0,0.00010217,2]
[420956314,1776797446999,-2000.0,0.00010217,2]
[420956315,1776797447009,-2000.0,0.00010217,2]
[420956316,1776797447018,-2000.0,0.00010217,2]
[420956317,1776797447027,-174.61919141,0.00010217,2]
[420956318,1776797447036,-1500.0,0.00010217,2]
[420956319,1776797447045,-235.75327194,0.00010217,2]
[420956320,1776797447055,-244.476143,0.00010217,2]
[420956321,1776797447064,-372.09560581,0.00010217,2]
[420956322,1776797447074,-151.0,0.00010272,2]
[420956323,1776797447083,-151.0,0.00010327,2]
[420956324,1776797447092,-2000.0,0.0001037,2]
[420956325,1776797447102,-151.0,0.00010382,2]
[420956326,1776797447111,-1117.0,0.00010402,2]
[420956327,1776797447121,-190.01,0.00010428,2]
[420956328,1776797447130,-151.0,0.00010437,2]
[420956329,1776797447139,-150.99,0.00010475,2]
[420956330,1776797447148,-9999.99,0.00010475,2]
[420956331,1776797447157,-14130.61,0.00010475,2]
[420956332,1776797447167,-24999.99,0.00010475,2]
[420956333,1776797447176,-299.99,0.00010475,2]
[420956334,1776797447186,-9999.99,0.00010475,2]
[420956335,1776797447195,-9999.99,0.00010475,2]
[420956336,1776797447205,-2224.11,0.00010475,2]
[420956337,1776797447214,-3039.17,0.00010475,2]
[420956338,1776797447223,-999.99,0.00010475,2]
[420956339,1776797447232,-9999.99,0.00010475,2]
[420956340,1776797447242,-151.0,0.00010492,2]
[420956341,1776797447254,-151.0,0.00010547,2]
[420956342,1776797447263,-6869.55970754,0.0001058,2]
[420956343,1776797447273,-805.85760531,0.0001058,2]
[420956344,1776797447282,-151.0,0.00010602,2]
[420956345,1776797447291,-192.33,0.00010627,2]
[420956346,1776797447301,-305979.30103741,0.0001068,2]
[420956347,1776797447313,-3584.9704,0.0001068,2]
[420956348,1776797447324,-5808.85334181,0.0001068,2]
[420956349,1776797447336,-1508.949995,0.0001068,2]
[420956350,1776797447358,-7729.9,0.0001068,2]
[420956351,1776797447439,-1194.85013391,0.0001068,2]
[420956352,1776797527449,150.44534427,0.00016226,30]
[420956353,1776797529343,-10000.01,7.893e-05,2]
[420956354,1776797535228,-10000.01,7.893e-05,2]
[420956356,1776797601035,500.0,0.00016226,30]
[420956357,1776797601193,500.0,0.00016226,30]
[420956358,1776797601376,198.46692392,0.00016226,30]
[420956359,1776797719199,182.14,7.474e-05,2]
[420956361,1776797963238,500.0,0.00016226,30]
[420956362,1776797963399,500.0,0.00016226,30]
[420956363,1776797963556,371.0,0.00016226,30]
[420956364,1776797996185,-743.062,0.0001672,120]
[420956365,1776798085799,-1387.0,0.0001672,120]
[420956366,1776798093916,2576.056,7.735e-05,2]
[420956367,1776798094009,182.264,7.735e-05,2]
[420956368,1776798137339,-2782.2,0.0001672,120]
[420956370,1776798162707,-2686.0,0.0001672,120]
[420956371,1776798316720,150.0,7.101e-05,2]
[420956372,1776798316756,150.0,7.417e-05,2]
[420956373,1776798316840,150.0,7.259e-05,2]
[420956374,1776798316906,150.0,7.733e-05,2]
[420956375,1776798316968,150.0,7.575e-05,2]
[420956376,1776798317093,150.0,7.101e-05,2]
[420956377,1776798317165,150.0,7.259e-05,2]
[420956378,1776798317236,150.0,7.417e-05,2]
[420956379,1776798317304,150.0,7.575e-05,2]
[420956380,1776798317376,150.0,7.733e-05,2]
[420956381,1776798319213,150.0,7.101e-05,2]
[420956382,1776798319247,150.0,7.2e-05,2]
[420956383,1776798319336,150.0,7.299e-05,2]
[420956384,1776798319397,150.0,7.101e-05,2]
[420956385,1776798319430,150.0,7.397e-05,2]
[420956386,1776798319495,150.0,7.496e-05,2]
[420956387,1776798319528,150.0,7.496e-05,2]
[420956388,1776798319581,150.0,7.595e-05,2]
[420956389,1776798319613,150.0,7.693e-05,2]
[420956390,1776798321819,150.0,7.101e-05,2]
[420956391,1776798321995,150.0,7.101e-05,2]
[420956392,1776798322091,150.0,7.277e-05,2]
[420956393,1776798322160,150.0,7.364e-05,2]
[420956394,1776798322234,150.0,7.452e-05,2]
[420956395,1776798322302,150.0,7.54e-05,2]
[420956396,1776798322472,150.0,7.627e-05,2]
[420956397,1776798322634,150.0,7.715e-05,2]
[420956398,1776798322772,150.0,7.189e-05,2]
[420956399,1776798334672,150.62053055,7.101e-05,2]
[420956400,1776798334764,150.0,7.101e-05,2]
[420956401,1776798334829,150.0,7.496e-05,2]
[420956402,1776798335297,-150.0,7.792e-05,2]
[420956403,1776798335323,-1831.0769,7.793e-05,2]
[420956404,1776798335344,-252.0,7.793e-05,2]
[420956405,1776798335366,-250.0,7.793e-05,2]
[420956406,1776798335388,-2516.9231,7.793e-05,2]
[420956407,1776798339049,150.0,7.101e-05,2]
[420956408,1776798339095,150.0,7.136e-05,2]
[420956409,1776798339133,150.0,7.17e-05,2]
[420956410,1776798339171,150.0,7.204e-05,2]
[420956411,1776798339215,150.0,7.239e-05,2]
[420956412,1776798339256,150.0,7.273e-05,2]
[420956413,1776798339291,150.0,7.307e-05,2]
[420956414,1776798339336,150.0,7.342e-05,2]
[420956415,1776798339374,150.0,7.376e-05,2]
[420956416,1776798339411,150.0,7.41e-05,2]
[420956417,1776798339454,150.0,7.444e-05,2]
[420956418,1776798339488,150.0,7.479e-05,2]
[420956419,1776798339526,150.0,7.513e-05,2]
[420956420,1776798339568,150.0,7.547e-05,2]
[420956421,1776798339610,150.0,7.582e-05,2]
[420956422,1776798339640,150.0,7.616e-05,2]
[420956423,1776798339676,150.0,7.65e-05,2]
[420956424,1776798339722,150.0,7.685e-05,2]
[420956425,1776798339756,150.0,7.719e-05,2]
[420956426,1776798339790,150.0,7.753e-05,2]
[420956427,1776798339918,150.0,7.299e-05,2]
[420956428,1776798339952,150.0,7.496e-05,2]
[420956429,1776798339988,150.0,7.693e-05,2]
[420956430,1776798343813,150.0,7.101e-05,2]
[420956431,1776798530831,3629.218,7.783e-05,2]
[420956432,1776798576423,161.46357839,0.00016226,30]
[420956433,1776798576459,500.0,0.00016226,30]
[420956434,1776798576515,500.0,0.00016226,30]
[420956435,1776798576562,500.0,0.00016226,30]
[420956436,1776798576599,500.0,0.00016226,30]
[420956437,1776798576639,500.0,0.00016226,30]
[420956438,1776798576705,500.0,0.00016226,30]
[420956439,1776798576883,500.0,0.00016226,30]
[420956440,1776798577057,500.0,0.00016226,30]
[420956441,1776798577219,500.0,0.00016226,30]
[420956442,1776798577397,500.0,0.00016226,30]
[420956443,1776798577972,500.0,0.00016226,30]
[420956444,1776798578021,500.0,0.00016226,30]
[420956445,1776798578080,2516.9231,7.771e-05,2]
[420956446,1776798578117,500.0,0.00016226,30]
[420956447,1776798578172,500.0,0.00016226,30]
[420956448,1776798578289,500.0,0.00016226,30]
[420956449,1776798578322,500.0,0.00016226,30]
[420956450,1776798578407,500.0,0.00016226,30]
[420956451,1776798578437,500.0,0.00016226,30]
[420956452,1776798578468,944.0,0.00016226,30]
[420956453,1776798578572,500.0,0.00016226,30]
[420956454,1776798578602,500.0,0.00016226,30]
[420956455,1776798578636,944.0,0.00016226,30]
[420956456,1776798578738,500.0,0.00016226,30]
[420956457,1776798578796,944.0,0.00016226,30]
[420956458,1776798578909,500.0,0.00016226,30]
[420956459,1776798579038,640.0,0.00016226,30]
[420956460,1776798579101,500.0,0.00016226,30]
[420956461,1776798579327,500.0,0.00016226,30]
[420956462,1776798579469,500.0,0.00016226,30]
[420956463,1776798579558,944.0,0.00016226,30]
[420956464,1776798579717,944.0,0.00016226,30]
[420956465,1776798579844,500.0,0.00016226,30]
[420956466,1776798579879,944.0,0.00016226,30]
[420956467,1776798580050,944.0,0.00016226,30]
[420956468,1776798580079,500.0,0.00016226,30]
[420956469,1776798580251,944.0,0.00016226,30]
[420956470,1776798580279,459.20054883,0.00016226,30]
[420956471,1776798580371,944.0,0.00016226,30]
[420956472,1776798580531,944.0,0.00016226,30]
[420956473,1776798580691,944.0,0.00016226,30]
[420956474,1776798580851,944.0,0.00016226,30]
[420956475,1776798581017,944.0,0.00016226,30]
[420956476,1776798581172,944.0,0.00016226,30]
[420956477,1776798581364,944.0,0.00016226,30]
[420956478,1776798581535,944.0,0.00016226,30]
[420956479,1776798581692,944.0,0.00016226,30]
[420956480,1776798582165,944.0,0.00016226,30]
[420956481,1776798582921,944.0,0.00016226,30]
[420956482,1776798584005,944.0,0.00016226,30]
[420956483,1776798585365,944.0,0.00016226,30]
[420956484,1776798588474,944.0,0.00016226,30]
[420956485,1776798588990,944.0,0.00016226,30]
[420956486,1776798591583,947.0,0.00016226,30]
[420956491,1776798631804,-252.0,7.787e-05,2]
[420956492,1776798631813,-150.0,7.787e-05,2]
[420956493,1776798631822,-592.3940699,7.793e-05,2]
[420956494,1776798631833,-675.39141624,7.793e-05,2]
[420956495,1776798631845,-563.29141386,7.793e-05,2]
[420956496,1776798631854,-2300.0,7.8e-05,2]
[420956497,1776798631863,-150.0,7.803e-05,2]
[420956498,1776798631873,-150.0,7.822e-05,2]
[420956499,1776798631882,-150.0,7.856e-05,2]
[420956500,1776798631891,-300.0,7.872e-05,2]
[420956501,1776798631900,-1200.0,7.872e-05,2]
[420956502,1776798631910,-500.0,7.873e-05,2]
[420956503,1776798631919,-500.0,7.873e-05,2]
[420956504,1776798631929,-160.12634592,7.873e-05,2]
[420956505,1776798631938,-25981.536,7.883e-05,2]
[420956506,1776798631947,-150.0,7.89e-05,2]
[420956507,1776798631957,-150.0,7.89e-05,2]
[420956508,1776798631966,-150.0,7.89e-05,2]
[420956509,1776798631975,-150.0,7.89e-05,2]
[420956510,1776798631985,-150.0,7.89e-05,2]
[420956511,1776798631994,-150.0,7.89e-05,2]
[420956512,1776798632004,-150.0,7.89e-05,2]
[420956513,1776798632014,-289.7208,7.89e-05,2]
[420956514,1776798632023,-150.0,7.89e-05,2]
[420956515,1776798632033,-150.0,7.891e-05,2]
[420956516,1776798632043,-159.03571402,7.892e-05,2]
[420956517,1776798632052,-500.0,7.892e-05,2]
[420956518,1776798632062,-321.6368062,7.892e-05,2]
[420956519,1776798632071,-500.0,7.892e-05,2]
[420956520,1776798632081,-470.13052168,7.892e-05,2]
[420956521,1776798632090,-4600.0,7.9e-05,2]
[420956522,1776798632099,-10153.739396,7.945e-05,2]
[420956523,1776798632109,-7000.0,8e-05,2]
[420956524,1776798632118,-4180.484568,8.178e-05,2]
[420956525,1776798632127,-500.0,8.219e-05,2]
[420956526,1776798632137,-256.56252858,8.219e-05,2]
[420956528,1776798632146,-500.0,8.219e-05,2]
[420956529,1776798632156,-500.0,8.219e-05,2]
[420956530,1776798632165,-152.0,8.564e-05,7]
[420956531,1776798632174,-250.0,8.566e-05,2]
[420956532,1776798632184,-250.0,8.566e-05,2]
[420956533,1776798632193,-4979.53,8.566e-05,2]
[420956535,1776798632202,-250.0,8.566e-05,2]
[420956536,1776798632211,-200.0,8.639e-05,2]
[420956537,1776798632220,-158.17,8.658e-05,2]
[420956538,1776798632229,-1680.0,8.659e-05,2]
[420956539,1776798632239,-255.0,8.68e-05,2]
[420956540,1776798632249,-166.66,9.053e-05,2]
[420956541,1776798632258,-151.0,9.236e-05,2]
[420956542,1776798632266,-176.13,9.443e-05,2]
[420956543,1776798632275,-401.27508644,9.475e-05,2]
[420956544,1776798632285,-265.86882315,9.475e-05,2]
[420956545,1776798632294,-160.11528591,9.475e-05,2]
[420956546,1776798632303,-500.0,9.475e-05,2]
[420956547,1776798632312,-3137.1,9.506e-05,2]
[420956548,1776798632322,-3137.1,9.506e-05,2]
[420956549,1776798632331,-286.0,9.548e-05,2]
[420956550,1776798632340,-500.0,9.749e-05,2]
[420956551,1776798632350,-260.0,9.863e-05,2]
[420956552,1776798632359,-162.9621,0.0001,2]
[420956553,1776798632368,-159.45207365,0.0001,2]
[420956554,1776798632379,-159.45207365,0.0001,2]
[420956555,1776798632388,-159.45207365,0.0001,2]
[420956556,1776798632397,-220.72990498,0.0001,2]
[420956557,1776798632406,-200.0,0.0001,2]
[420956558,1776798632416,-151.0,0.0001,2]
[420956559,1776798632425,-151.0,0.0001,2]
[420956560,1776798632435,-151.0,0.0001,2]
[420956561,1776798632444,-151.0,0.0001,2]
[420956562,1776798632453,-151.0,0.0001,2]
[420956563,1776798632462,-151.0,0.0001,2]
[420956564,1776798632471,-151.0,0.0001,2]
[420956565,1776798632481,-151.0,0.0001,2]
[420956566,1776798632490,-500.0,0.0001,2]
[420956567,1776798632500,-151.0,0.0001,2]
[420956568,1776798632509,-586.5457047,0.0001,2]
[420956569,1776798632518,-151.0,0.0001,2]
[420956570,1776798632528,-151.0,0.0001,2]
[420956571,1776798632537,-151.0,0.0001,2]
[420956572,1776798632547,-151.0,0.0001,2]
[420956573,1776798632556,-151.0,0.0001,2]
[420956574,1776798632566,-151.0,0.0001,2]
[420956575,1776798632575,-151.0,0.0001,2]
[420956576,1776798632585,-151.0,0.0001,2]
[420956577,1776798632594,-151.0,0.0001,2]
[420956578,1776798632603,-151.0,0.0001,2]
[420956579,1776798632613,-151.0,0.0001,2]
[420956580,1776798632622,-151.0,0.0001,2]
[420956581,1776798632631,-151.0,0.0001,2]
[420956582,1776798632640,-151.0,0.0001,2]
[420956583,1776798632649,-151.0,0.0001,2]
[420956584,1776798632659,-151.0,0.0001,2]
[420956585,1776798632668,-151.0,0.0001,2]
[420956586,1776798632678,-151.0,0.0001,2]
[420956587,1776798632688,-151.0,0.0001,2]
[420956588,1776798632698,-151.0,0.0001,2]
[420956589,1776798632709,-500.0,0.00010023,2]
[420956590,1776798632719,-151.0,0.00010053,2]
[420956591,1776798632729,-570.35,0.0001006,2]
[420956592,1776798632740,-158.17,0.00010101,2]
[420956593,1776798632751,-160.0,0.00010103,2]
[420956594,1776798632760,-1232.66260711,0.00010204,2]
[420956595,1776798632770,-200.0,0.00010246,2]
[420956596,1776798632779,-721.12765535,0.00010246,2]
[420956597,1776798632789,-174.61919141,0.00010246,2]
[420956598,1776798632799,-4945.52621348,0.00010375,2]
[420956599,1776798632808,-1117.0,0.00010402,2]
[420956600,1776798632818,-150.99,0.00010475,2]
[420956601,1776798632827,-9999.99,0.00010475,2]
[420956602,1776798632837,-15229.66,0.00010475,2]
[420956603,1776798632847,-164.3203853,0.00010495,2]
[420956604,1776798632856,-3780.0,0.00010496,2]
[420956605,1776798632866,-416.0,0.00010496,2]
[420956606,1776798632875,-3016.5121382,0.00010505,2]
[420956607,1776798632885,-150.0,0.00010521,2]
[420956608,1776798632895,-4904.7786681,0.00010523,2]
[420956609,1776798632904,-166.66,0.00010547,2]
[420956610,1776798632914,-200.0,0.00010548,2]
[420956611,1776798632923,-24424.9757389,0.00010582,2]
[420956612,1776798632933,-150.0,0.00010655,2]
[420956613,1776798632942,-250.0,0.00010685,2]
[420956614,1776798632955,-452.0,0.0001069,5]
[420956615,1776798632965,-49444.76765533,0.0001069,3]
[420956616,1776798632979,-1254.41808677,0.0001069,3]
[420956617,1776798633392,-2642.63241699,0.0001069,3]
[420956618,1776798633405,-15499.26740807,0.0001069,3]
[420956619,1776798633418,-985.20374786,0.0001069,3]
[420956620,1776798633429,-719.52552339,0.0001069,3]
[420956621,1776798633540,-3459.21954555,0.0001069,3]
[420956622,1776798633564,-1088.98677879,0.0001069,3]
[420956623,1776798633575,-2434.79182097,0.0001069,3]
[420956624,1776798633590,-2586.05206249,0.0001069,3]
[420956630,1776798638285,-82425.11998565,0.0001069,3]
[420956686,1776798639982,-3104.41515332,0.0001069,3]
[420956687,1776798640037,-729.21156252,0.0001069,3]
[420956688,1776798640412,-136289.20000006,0.0001069,3]
[420956689,1776798640468,-180038.0259974,0.0001069,3]
[420956690,1776798640478,-372.0,0.0001069,5]
[420956691,1776798640488,-114028.41616016,0.000107,2]
[420956692,1776798640497,-9300.0,0.000107,3]
[420956693,1776798640507,-250.0,0.00010711,2]
[420956694,1776798640517,-150.0,0.00010726,2]
[420956695,1776798640527,-932.45359908,0.0001078,2]
[420956696,1776798640537,-160.0,0.0001078,2]
[420956697,1776798640546,-171.004455,0.0001078,2]
[420956698,1776798640556,-182.008911,0.0001078,2]
[420956699,1776798640566,-164.786113,0.0001078,2]
[420956700,1776798640576,-200.0,0.00010794,2]
[420956702,1776798640585,-181.08010149,0.00010794,2]
[420956703,1776798640595,-11700.0,0.000108,3]
[420956704,1776798640604,-274.0,0.00010807,2]
[420956705,1776798640614,-150.069,0.00010807,2]
[420956706,1776798640623,-1348.0,0.00010807,2]
[420956707,1776798640633,-3530.0,0.00010807,2]
[420956708,1776798640643,-1048.0,0.00010807,2]
[420956709,1776798640652,-1265.0,0.00010807,2]
[420956710,1776798640662,-299.681203,0.00010807,2]
[420956711,1776798640672,-299.681203,0.00010807,2]
[420956712,1776798640682,-299.681203,0.00010807,2]
[420956713,1776798640691,-299.681203,0.00010807,2]
[420956714,1776798640701,-640.223762,0.00010807,2]
[420956715,1776798640712,-640.223762,0.00010807,2]
[420956716,1776798640722,-640.223762,0.00010807,2]
[420956717,1776798640731,-640.223762,0.00010807,2]
[420956718,1776798640741,-250.0,0.00010839,2]
[420956719,1776798640751,-151.0,0.00010875,2]
[420956720,1776798640765,-160.0,0.00010877,2]
[420956721,1776798640775,-644.125749,0.00010877,2]
[420956722,1776798640784,-1128.251498,0.00010877,2]
[420956723,1776798640795,-1333.33333,0.0001089,2]
[420956724,1776798640804,-1333.33334,0.0001089,2]
[420956725,1776798640815,-2300.0,0.000109,3]
[420956726,1776798640824,-151.0,0.000109,2]
[420956727,1776798640835,-151.0,0.000109,2]
[420956728,1776798640845,-151.0,0.000109,2]
[420956729,1776798640855,-4579.7064717,0.000109,2]
[420956730,1776798640865,-1948.74635306,0.000109,2]
[420956731,1776798640876,-3911.64865286,0.000109,2]
[420956732,1776798640885,-3911.64865284,0.000109,2]
[420956733,1776798640895,-250.0,0.00010915,2]
[420956734,1776798640905,-300.0,0.00010915,2]
[420956735,1776798640915,-200.0,0.00010915,2]
[420956736,1776798640925,-200.0,0.00010915,2]
[420956737,1776798640936,-11864.10091462,0.00010935,2]
[420956738,1776798640946,-216.3,0.00010945,2]
[420956739,1776798640956,-269.33,0.00010945,2]
[420956740,1776798640967,-251.38,0.00010945,2]
[420956741,1776798640977,-167.6,0.00010945,2]
[420956742,1776798640987,-180.25,0.00010945,2]
[420956743,1776798640997,-1117.0,0.00010949,2]
[420956744,1776798641007,-2000.0,0.00010959,2]
[420956745,1776798641017,-500.0,0.00010959,2]
[420956746,1776798641026,-178.08835478,0.00010959,2]
[420956747,1776798641037,-3240.0,0.00010959,2]
[420956748,1776798641047,-151.0,0.00010959,2]
[420956749,1776798641057,-150.0,0.00010959,2]
[420956750,1776798641067,-3911.64865284,0.00010964,2]
[420956751,1776798641076,-180.28,0.00010989,2]
[420956752,1776798641086,-460.5,0.00010989,2]
[420956753,1776798641096,-151.0,0.00010997,2]
[420956754,1776798641106,-300.0,0.00010999,2]
[420956755,1776798641116,-300.0,0.00010999,2]
[420956756,1776798641126,-300.0,0.00010999,2]
[420956757,1776798641136,-300.0,0.00010999,2]
[420956758,1776798641146,-300.0,0.00010999,2]
[420956759,1776798641156,-300.0,0.00010999,2]
[420956760,1776798641166,-410.0,0.00011,5]
[420956761,1776798641176,-195780.07900706,0.00011,2]
[420956762,1776798641186,-230889.99239991,0.00011,2]
[420956787,1776798642857,-665.86939559,0.00010786,2]
[420956788,1776798642912,-1808.13060441,0.00010786,2]
[420956790,1776798642923,-3232.72885194,0.00011,2]
[420956791,1776798643045,-346.4546635,0.0001078,2]
[420956792,1776798643182,-275.18106922,0.0001078,2]